bitfinex/quotes_SOLUSD_20240918
["timestamp","ask_amount","ask_price","bid_price","bid_amount"]
[1726684522788,7.5153,133.07,133.0,9.02171128]
[1726684522990,7.5153,133.07,132.98,69.3070163]
[1726684522991,18.781,133.12,132.99,7.5191]
[1726684523228,18.781,133.12,133.01,7.5181]
[1726684523386,7.5122,133.12,133.02,1.5030239]
[1726684523599,7.5122,133.12,133.0,50.0]
[1726684523600,37.5398,133.2,133.04,18.791]
[1726684523785,18.7734,133.17,133.04,18.791]
[1726684523986,7.5137,133.1,133.03,50.0]
[1726684524287,18.7728,133.18,133.05,50.0]
[1726684524487,0.5082163,133.26,133.05,50.0]
[1726684524488,18.7672,133.22,133.09,68.7839]
[1726684524707,18.7672,133.22,133.07,62.73235964]
[1726684525015,18.7672,133.22,133.08,50.0]
[1726684525187,18.7705,133.19,133.08,18.7843]
[1726684525382,0.5082163,133.26,133.08,50.0]
[1726684525712,18.7642,133.24,133.11,68.7812]
[1726684526010,7.5075,133.21,133.14,7.5108]
[1726684526193,18.7642,133.24,133.14,7.5108]
[1726684526194,0.5082163,133.26,133.14,18.7769]
[1726684526392,7.506,133.23,133.17,7.5091]
[1726684526601,0.5082163,133.26,133.17,50.0]
[1726684526804,7.5054,133.24,133.16,7.63499]
[1726684527008,0.5082163,133.26,133.15,18.7745]
[1726684527193,0.5082163,133.26,133.13,50.0]
[1726684527523,0.5082163,133.26,133.15,50.0]
[1726684527810,0.5082163,133.26,133.17,50.0]
[1726684528009,0.5082163,133.26,133.16,68.7741]
[1726684528593,0.5082163,133.26,133.21,0.25098]
[1726684528795,0.5082163,133.26,133.21,7.5066]
[1726684528997,0.5082163,133.26,133.2,57.5074]
[1726684529181,0.5082163,133.26,133.2,50.0]
[1726684529387,0.5082163,133.26,133.21,7.5068]
[1726684529595,0.5082163,133.26,133.22,68.7646]
[1726684529917,0.5082163,133.26,133.19,0.12549]
[1726684529918,0.5082163,133.26,133.19,7.5078]
[1726684530110,0.5082163,133.26,133.21,7.63209]
[1726684530291,0.5082163,133.26,133.18,18.7715]
[1726684530292,8.0124163,133.26,133.19,0.12549]
[1726684530492,0.5082163,133.26,133.19,7.5079]
[1726684530810,8.0125163,133.26,133.18,57.5085]
[1726684531019,0.5082163,133.26,133.17,18.7726]
[1726684531191,7.5048,133.25,133.17,26.2814]
[1726684531394,0.5082163,133.26,133.18,50.0]
[1726684531590,24.2851003,133.26,133.19,1.50078804]
[1726684531809,0.5082163,133.26,133.21,50.0]
[1726684532319,0.5082163,133.26,133.23,50.0]
[1726684532818,0.5082163,133.26,133.25,50.0]
[1726684533026,0.5082163,133.26,133.22,18.7651]
[1726684533027,0.5082163,133.26,133.22,68.7651]
[1726684533194,0.5082163,133.26,133.22,18.7651]
[1726684533401,0.5082163,133.26,133.22,26.2713]
[1726684533627,0.5082163,133.26,133.19,50.0]
[1726684533917,0.5082163,133.26,133.18,26.2791]
[1726684534226,24.2851003,133.26,133.17,50.0]
[1726684534529,24.2851003,133.26,133.13,50.0]
[1726684534697,23.776884,133.18,133.11,50.0]
[1726684534901,23.776884,133.24,133.1,50.0]
[1726684535137,20.0,133.19,133.08,50.0]
[1726684535415,23.776884,133.18,133.08,50.0]
[1726684535624,23.776884,133.16,133.07,18.7862]
[1726684535828,23.776884,133.16,133.09,50.0]
[1726684536121,7.5075,133.2,133.12,7.5118]
[1726684536436,7.5075,133.2,133.07,50.0]
[1726684536437,7.5109,133.14,133.07,50.0]
[1726684536596,23.776884,133.11,133.04,50.0]
[1726684536924,10.0,133.22,133.07,7.5147]
[1726684536925,23.776884,133.13,133.07,7.5147]
[1726684537126,7.5097,133.16,133.08,57.5141]
[1726684537426,43.776884,133.15,133.08,57.5141]
[1726684537636,23.776884,133.19,133.11,50.0]
[1726684537798,0.5082163,133.26,133.11,50.0]
[1726684538121,0.5082163,133.26,133.12,7.5119]
[1726684538325,7.505,133.25,133.15,7.5098]
[1726684538512,7.507,133.21,133.13,57.511]
[1726684538712,7.5062,133.23,133.15,50.0]
[1726684538918,0.5082163,133.26,133.11,50.0]
[1726684539111,0.5082163,133.26,133.15,7.5102]
[1726684539424,7.508,133.19,133.11,68.90559]
[1726684539727,7.5063,133.22,133.13,50.0]
[1726684539931,19.2685163,133.26,133.11,68.7801]
[1726684540231,0.5082163,133.26,133.15,7.63539]
[1726684540525,7.5063,133.22,133.14,18.777]
[1726684540753,0.5082163,133.26,133.16,7.5096]
[1726684541018,0.5082163,133.26,133.18,50.0]
[1726684541201,0.5082163,133.26,133.2,57.5073]
[1726684541526,0.5082163,133.26,133.2,18.7678]
[1726684542020,0.5082163,133.26,133.18,57.5084]
[1726684542227,7.5058,133.23,133.16,50.0]
[1726684542519,0.5082163,133.26,133.14,50.0]
[1726684542722,7.5059,133.23,133.16,50.0]
[1726684543023,7.5052,133.24,133.16,50.0]
[1726684543220,23.776884,133.24,133.16,7.5096]
[1726684543417,23.776884,133.24,133.15,7.5102]
[1726684543418,31.282284,133.24,133.15,7.5102]
[1726684543725,7.5058,133.23,133.15,7.5102]
[1726684543908,31.282584,133.24,133.15,7.5102]
[1726684544101,31.282584,133.24,133.14,50.0]
[1726684544102,31.283284,133.22,133.14,50.0]
[1726684544423,23.776884,133.21,133.15,7.5102]
[1726684544647,23.776884,133.21,133.14,57.5108]
[1726684545022,23.776884,133.21,133.13,18.7785]
[1726684545225,23.776884,133.21,133.12,50.0]
[1726684545653,7.5093,133.17,133.09,7.5136]
[1726684545955,7.5068,133.22,133.12,50.0]
[1726684546251,23.776884,133.21,133.12,50.0]
[1726684546419,23.776884,133.18,133.12,50.0]
[1726684546626,23.776884,133.18,133.11,18.90569]
[1726684546627,23.776884,133.18,133.11,68.90569]
[1726684547134,23.776884,133.14,133.05,50.0]
[1726684547443,7.5115,133.13,133.05,76.3047]
[1726684547639,7.5132,133.1,133.04,7.85452176]
[1726684547842,20.0,133.13,133.04,7.5164]
[1726684548144,31.288884,133.12,133.03,76.3087]
[1726684548345,23.776884,133.12,133.01,50.0]
[1726684548547,7.5142,133.09,133.01,50.0]
[1726684548749,0.12549,133.17,132.98,0.5082163]
[1726684548750,23.776884,133.08,132.99,50.0]
[1726684548952,23.776884,133.08,133.0,5.90537025]
[1726684549129,23.776884,133.06,133.0,1.50288119]
[1726684549322,23.776884,133.06,132.98,8.0280163]
[1726684549323,23.776884,133.06,132.98,0.5082163]
[1726684549528,7.5184,133.01,132.98,0.5082163]
[1726684549759,7.5181,133.02,132.98,0.5082163]
[1726684550032,23.776884,133.0,132.98,0.5082163]
[1726684550649,23.776884,133.01,132.98,0.5082163]
[1726684550848,0.25098,133.0,132.9,0.5082163]
[1726684551160,0.25098,133.0,132.86,5.92120325]
[1726684551161,23.776884,132.97,132.86,5.92120325]
[1726684551367,23.776884,132.9,132.85,9.17670649]
[1726684551569,0.25098,132.97,132.83,0.5082163]
[1726684551570,23.776884,132.88,132.83,0.5082163]
[1726684551740,23.776884,132.88,132.75,0.5082163]
[1726684551741,23.776884,132.88,132.77,1.31207063]
[1726684551742,0.25098,132.86,132.77,1.31207063]
[1726684551929,20.0,132.78,132.77,1.31207063]
[1726684552260,27.5323,132.76,132.67,0.5082163]
[1726684552550,19.07518,132.81,132.67,0.5082163]
[1726684552753,7.5325,132.76,132.67,0.5082163]
[1726684552928,18.8293,132.78,132.67,0.5082163]
[1726684553128,7.5365,132.69,132.67,0.5082163]
[1726684553333,7.5365,132.69,132.59,0.5082163]
[1726684553334,0.12549,132.68,132.59,0.5082163]
[1726684553754,0.12549,132.68,132.55,1.31391987]
[1726684553755,7.5437,132.56,132.55,1.31391987]
[1726684554051,7.5437,132.56,132.51,0.5082163]
[1726684554052,0.12549,132.61,132.51,0.5082163]
[1726684554353,20.0,132.61,132.51,0.5082163]
[1726684554561,20.0,132.61,132.44,1.31491729]
[1726684554562,0.37647,132.6,132.44,1.31491729]
[1726684554859,0.37647,132.6,132.34,62.73235964]
[1726684554860,20.37647,132.57,132.39,50.0]
[1726684555158,7.548,132.49,132.39,50.0]
[1726684555366,7.548,132.49,132.33,68.8907]
[1726684555367,23.776884,132.48,132.33,68.8907]
[1726684555652,23.776884,132.44,132.35,1.31622529]
[1726684555953,23.776884,132.44,132.37,50.0]
[1726684556145,23.776884,132.44,132.36,0.5082163]
[1726684557050,20.0,132.41,132.3,18.8962]
[1726684557363,23.776884,132.4,132.29,1.3167871]
[1726684557543,23.776884,132.38,132.28,0.5082163]
[1726684557740,23.776884,132.36,132.28,0.5082163]
[1726684558132,23.776884,132.36,132.29,7.559]
[1726684558333,23.776884,132.36,132.29,50.0]
[1726684558533,23.776884,132.4,132.31,50.0]
[1726684558752,23.776884,132.4,132.34,18.8895]
[1726684558940,20.0,132.5,132.35,7.5553]
[1726684559136,20.0,132.48,132.28,50.5082163]
[1726684559340,20.0,132.48,132.3,7.5583]
[1726684559550,10.0,132.47,132.28,0.5082163]
[1726684559761,10.0,132.47,132.31,18.8937]
[1726684559935,20.0,132.48,132.31,50.0]
[1726684560138,20.0,132.48,132.29,87.7944]
[1726684560139,20.0,132.46,132.29,87.7944]
[1726684560433,20.0,132.44,132.29,87.7944]
[1726684560636,10.0,132.53,132.37,18.8858]
[1726684560835,0.5082163,132.55,132.37,50.0]
[1726684561244,0.5082163,132.55,132.39,18.8832]
[1726684561560,10.0,132.51,132.34,7.5559]
[1726684561764,17.65792217,132.54,132.35,70.39974158]
[1726684562053,0.5082163,132.55,132.28,0.5082163]
[1726684562054,10.0,132.5,132.28,8.0679163]
[1726684562256,10.0,132.46,132.28,0.5082163]
[1726684562430,23.902374,132.44,132.28,0.5082163]
[1726684562632,23.776884,132.42,132.28,0.5082163]
[1726684562833,8.29167995,132.41,132.28,0.5082163]
[1726684563070,0.12549,132.38,132.28,0.5082163]
[1726684563234,23.776884,132.34,132.28,0.5082163]
[1726684563638,23.776884,132.32,132.28,0.5082163]
[1726684563834,20.0,132.29,132.28,0.5082163]
[1726684564131,20.0,132.29,132.2,19.4186163]
[1726684564132,0.12549,132.28,132.2,0.5082163]
[1726684564344,20.0,132.29,132.2,0.5082163]
[1726684564560,20.0,132.29,132.21,20.4204448]
[1726684564762,20.0,132.29,132.2,0.5082163]
[1726684564932,0.25098,132.28,132.2,0.5082163]
[1726684565136,20.0,132.29,132.2,0.5082163]
[1726684565457,20.0,132.4,132.25,18.9025]
[1726684565760,30.0,132.4,132.21,18.9089]
[1726684565942,30.0,132.4,132.2,0.5082163]
[1726684565943,10.0,132.35,132.2,0.5082163]
[1726684566256,10.0,132.33,132.2,0.5082163]
[1726684566437,18.8949,132.32,132.2,0.5082163]
[1726684566640,0.25098,132.23,132.2,0.5082163]
[1726684566842,10.0,132.31,132.12,0.5082163]
[1726684566843,20.0,132.2,132.12,0.5082163]
[1726684567038,20.0,132.14,132.04,19.4417163]
[1726684567351,24.153354,132.17,132.04,0.5082163]
[1726684567549,20.0,132.12,132.04,0.5082163]
[1726684567747,23.776884,132.13,132.04,0.5082163]
[1726684568055,23.776884,132.11,132.04,0.5082163]
[1726684568640,37.8111,132.24,132.04,0.5082163]
[1726684568641,23.776884,132.09,132.04,0.5082163]
[1726684568842,50.0,132.22,131.97,50.5082163]
[1726684568843,7.5744,132.03,131.97,0.5082163]
[1726684569151,20.37647,132.06,131.92,1.32043944]
[1726684569152,20.0,131.98,131.92,1.32043944]
[1726684569358,20.0,131.98,131.81,0.5082163]
[1726684569359,0.12549,131.95,131.85,7.5838]
[1726684569540,20.12549,131.92,131.81,0.5082163]
[1726684569743,0.25098,131.95,131.82,50.0]
[1726684569939,0.12549,131.95,131.86,18.9584]
[1726684570135,7.5747,132.02,131.9,7.5814]
[1726684570335,20.0,132.04,131.93,50.0]
[1726684570558,29.19064975,132.15,131.95,68.9454]
[1726684570757,8.0796163,132.08,131.96,7.5779]
[1726684570961,8.0796163,132.08,131.81,38.20553604]
[1726684570962,10.0,132.07,131.84,50.0]
[1726684571262,7.5757,132.0,131.88,7.5825]
[1726684571475,7.5757,132.0,131.86,18.9591]
[1726684571476,18.933,132.05,131.86,18.9591]
[1726684571642,18.9377,132.02,131.82,18.9651]
[1726684571849,7.5806,131.92,131.81,0.5082163]
[1726684572062,53.776884,132.01,131.81,0.5082163]
[1726684572063,20.0,131.94,131.81,0.5082163]
[1726684572367,24.027864,131.98,131.83,81.69595964]
[1726684572368,23.776884,131.98,131.83,81.69595964]
[1726684572677,20.0,131.98,131.89,50.0]
[1726684572963,23.776884,132.12,131.93,18.948]
[1726684573170,7.5701,132.1,131.97,7.5772]
[1726684573363,10.0,132.15,131.93,18.9494]
[1726684573545,7.5706,132.09,131.97,7.5773]
[1726684573863,50.0,132.12,131.95,0.12549]
[1726684574049,10.0,132.12,131.87,50.0]
[1726684574250,10.0,132.06,131.83,50.0]
[1726684574455,10.0,132.06,131.77,10.0]
[1726684574456,7.5811,131.91,131.77,7.5885]
[1726684574765,10.0,132.01,131.76,50.0]
[1726684574949,7.5816,131.9,131.75,63.64333389]
[1726684575154,7.93265301,131.93,131.84,68.9612]
[1726684575458,20.0,132.07,131.87,18.9568]
[1726684575459,0.12549,132.06,131.87,18.9568]
[1726684575775,7.9286413,132.04,131.87,7.5828]
[1726684575943,7.9286413,132.04,131.82,50.0]
[1726684576266,0.14109295,131.9,131.81,0.5082163]
[1726684577141,0.12549,131.89,131.81,0.5082163]
[1726684577372,0.25098,131.89,131.81,0.5082163]
[1726684577663,0.14109295,131.9,131.82,7.586]
[1726684577866,0.14109295,131.9,131.84,18.9623]
[1726684578052,0.14109295,131.9,131.88,7.5825]
[1726684578261,0.14109295,131.9,131.88,70.31485964]
[1726684578454,0.5082163,132.08,131.89,7.5817]
[1726684578767,0.5082163,132.08,131.87,18.9569]
[1726684578768,10.0,132.04,131.82,68.9647]
[1726684578963,10.0,132.03,131.81,0.5082163]
[1726684579158,10.0,132.04,131.86,7.5836]
[1726684579353,60.0,132.02,131.81,0.5082163]
[1726684579559,10.0,131.99,131.81,0.5082163]
[1726684579752,0.25098,131.98,131.81,0.5082163]
[1726684580051,0.12549,131.97,131.81,0.5082163]
[1726684580255,0.12549,131.97,131.84,18.9612]
[1726684580449,50.5082163,132.08,131.92,7.5803]
[1726684580450,0.5082163,132.08,131.92,7.5803]
[1726684580650,0.5082163,132.08,131.9,18.9527]
[1726684580959,0.5082163,132.08,131.95,50.0]
[1726684581160,0.5082163,132.08,131.98,50.0]
[1726684581366,0.5082163,132.08,131.98,7.5764]
[1726684581678,0.5082163,132.08,131.99,18.9396]
[1726684581848,0.5082163,132.08,131.91,50.0]
[1726684582157,0.5082163,132.08,131.98,18.9411]
[1726684582466,0.5082163,132.08,131.99,7.5761]
[1726684582768,0.5082163,132.08,132.01,18.937]
[1726684582970,0.5082163,132.08,132.06,7.5722]
[1726684583284,0.5082163,132.08,132.04,68.9324]
[1726684583568,0.5082163,132.08,132.06,7.5722]
[1726684583755,0.5082163,132.08,132.01,50.0]
[1726684584373,0.5082163,132.08,132.03,18.9344]
[1726684584563,0.5082163,132.08,132.05,0.12549]
[1726684584771,0.5082163,132.08,132.06,57.5719]
[1726684584951,0.5082163,132.16,132.12,7.5687]
[1726684585144,0.5082163,132.16,132.14,7.5677]
[1726684585351,0.5082163,132.16,132.15,1.63817305]
[1726684585648,0.5082163,132.24,132.16,50.0]
[1726684585848,0.5082163,132.24,132.15,63.10882964]
[1726684585849,0.5082163,132.24,132.21,7.5636]
[1726684586064,0.5082163,132.24,132.2,18.9102]
[1726684586065,0.5082163,132.24,132.22,7.5629]
[1726684586449,0.5082163,132.24,132.2,68.9102]
[1726684586649,0.5082163,132.24,132.22,57.5629]
[1726684587160,0.5082163,132.24,132.23,0.12549]
[1726684587369,0.5082163,132.24,132.22,50.0]
[1726684587676,0.5082163,132.24,132.21,7.5633]
[1726684587844,0.5082163,132.24,132.22,7.68839]
[1726684588044,0.5082163,132.24,132.22,0.12549]
[1726684588284,0.5082163,132.24,132.2,18.9102]
[1726684588475,0.5082163,132.24,132.21,0.25098]
[1726684588771,0.5082163,132.24,132.21,0.12549]
[1726684588981,0.5082163,132.24,132.23,0.12549]
[1726684589189,0.5082163,132.32,132.24,50.0]
[1726684589472,0.5082163,132.32,132.27,50.0]
[1726684589678,0.5082163,132.32,132.28,0.12549]
[1726684589878,0.5082163,132.32,132.21,0.12549]
[1726684590180,8.0657163,132.32,132.2,57.68969]
[1726684590382,0.5082163,132.32,132.2,50.0]
[1726684590562,0.5082163,132.32,132.25,0.12549]
[1726684590760,0.5082163,132.32,132.21,18.9085]
[1726684590955,0.5082163,132.32,132.22,50.12549]
[1726684591483,0.5082163,132.32,132.27,50.0]
[1726684591656,0.5082163,132.32,132.25,50.0]
[1726684591860,0.5082163,132.32,132.18,50.0]
[1726684592057,7.559,132.3,132.2,50.0]
[1726684592373,19.4022163,132.32,132.19,50.0]
[1726684592563,19.4022163,132.32,132.16,18.9152]
[1726684592759,7.5603,132.27,132.18,50.0]
[1726684592957,23.776884,132.26,132.09,0.90900312]
[1726684593179,7.5649,132.19,132.09,0.90900312]
[1726684593391,23.902374,132.22,132.07,50.0]
[1726684593392,0.12549,132.22,132.07,50.0]
[1726684593557,0.12549,132.22,132.05,50.0]
[1726684593758,0.25098,132.19,132.04,0.5082163]
[1726684594059,7.5689,132.12,132.04,0.5082163]
[1726684594258,7.5707,132.09,132.04,0.5082163]
[1726684594778,23.776884,132.1,132.04,0.5082163]
[1726684594968,23.776884,132.08,132.04,0.5082163]
[1726684595279,23.776884,132.1,132.04,0.5082163]
[1726684595585,7.5689,132.12,132.04,0.5082163]
[1726684595765,23.776884,132.1,132.04,0.5082163]
[1726684595964,20.12549,132.18,132.04,50.5082163]
[1726684596178,7.5692,132.12,132.04,0.5082163]
[1726684596382,20.0,132.11,132.04,0.5082163]
[1726684596592,0.25098,132.17,132.04,0.5082163]
[1726684596877,7.5673,132.15,132.04,50.5082163]
[1726684597087,24.027864,132.19,132.07,50.0]
[1726684597282,7.5666,132.16,132.07,50.0]
[1726684597456,10.0,132.27,132.07,50.0]
[1726684597657,10.0,132.22,132.04,0.5082163]
[1726684597857,7.5693,132.12,132.04,0.5082163]
[1726684598167,7.5685,132.13,132.04,0.5082163]
[1726684598483,18.9056,132.24,132.07,50.0]
[1726684598662,7.5659,132.18,132.07,50.0]
[1726684598983,18.9116,132.2,132.04,50.5082163]
[1726684599189,7.5675,132.15,132.04,0.5082163]
[1726684599354,18.9116,132.2,132.04,0.5082163]
[1726684599355,7.5679,132.14,132.04,0.5082163]
[1726684599560,7.5669,132.16,132.04,0.5082163]
[1726684599759,7.9490997,132.24,132.04,0.5082163]
[1726684599760,18.9058,132.24,132.09,0.12549]
[1726684599983,7.5641,132.21,132.1,50.0]
[1726684600484,18.9,132.28,132.13,0.12549]
[1726684600687,7.5643,132.2,132.11,20.0]
[1726684600888,7.5636,132.22,132.11,20.0]
[1726684601096,7.5638,132.21,132.11,20.0]
[1726684601273,7.5638,132.21,132.01,10.0]
[1726684601274,37.8096,132.25,132.04,50.5082163]
[1726684601471,37.8096,132.25,132.06,50.0]
[1726684601789,7.5649,132.19,132.06,50.0]
[1726684601962,37.8096,132.25,132.07,18.9285]
[1726684602263,20.25098,132.21,132.05,7.5728]
[1726684602462,7.5672,132.15,132.05,20.0]
[1726684602662,43.776884,132.12,132.04,50.5082163]
[1726684602885,23.776884,132.12,132.04,0.5082163]
[1726684603086,31.345784,132.12,132.04,0.5082163]
[1726684603264,23.776884,132.13,132.05,50.0]
[1726684603591,23.776884,132.13,132.04,0.5082163]
[1726684603769,0.25098,132.19,132.04,0.5082163]
[1726684603770,23.776884,132.11,132.04,0.5082163]
[1726684604091,23.776884,132.12,132.04,0.5082163]
[1726684604272,31.345784,132.12,132.04,0.5082163]
[1726684604470,20.0,132.09,132.04,0.5082163]
[1726684604672,23.776884,132.12,132.05,50.0]
[1726684604872,23.776884,132.12,132.04,0.5082163]
[1726684605187,7.5711,132.09,132.04,0.5082163]
[1726684605372,20.37647,132.11,132.04,0.5082163]
[1726684605571,31.349684,132.05,132.04,0.5082163]
[1726684605779,51.349684,132.05,132.04,0.5082163]
[1726684606189,51.349684,132.05,131.97,0.5082163]
[1726684606190,24.027864,132.04,131.97,0.5082163]
[1726684606393,7.5752,132.01,131.97,0.5082163]
[1726684606567,23.776884,132.0,131.97,0.5082163]
[1726684606962,16.69401333,132.13,131.97,0.5082163]
[1726684607168,23.776884,132.05,131.97,0.5082163]
[1726684607387,23.776884,132.05,131.97,0.4782363]
[1726684607594,16.69401333,132.13,132.0,50.0]
[1726684607767,7.568,132.14,132.03,50.0]
[1726684607970,18.9127,132.19,132.03,50.0]
[1726684608178,18.9127,132.19,132.02,0.12549]
[1726684608378,7.567,132.16,132.04,0.12549]
[1726684608693,7.5687,132.13,132.02,0.25098]
[1726684608879,37.8242,132.2,132.02,0.25098]
[1726684608880,7.5669,132.16,132.05,0.12549]
[1726684609187,20.0,132.13,132.02,0.12549]
[1726684609575,20.0,132.08,131.97,0.4782363]
[1726684609773,20.0,132.13,131.97,0.4782363]
[1726684609975,20.0,132.06,131.97,0.4782363]
[1726684610173,23.776884,132.05,131.97,0.4782363]
[1726684610593,20.0,132.02,131.97,0.4782363]
[1726684610791,23.776884,132.01,131.97,0.4782363]
[1726684611170,9.68959802,132.13,132.01,50.0]
[1726684611385,18.9224,132.12,131.97,0.4782363]
[1726684611585,7.5721,132.07,131.97,0.4782363]
[1726684611775,7.92265738,132.12,131.98,50.12549]
[1726684611984,7.92265738,132.12,131.99,0.12549]
[1726684612206,7.92265738,132.12,131.97,0.4782363]
[1726684612406,18.9299,132.07,131.97,0.4782363]
[1726684612693,55.46275347,132.12,131.97,0.4782363]
[1726684613083,7.5752,132.01,131.97,0.4782363]
[1726684613290,31.352784,132.0,131.97,0.4782363]
[1726684613487,23.776884,132.0,131.97,0.4782363]
[1726684614398,51.730254,131.98,131.97,0.4782363]
[1726684614588,51.730254,131.98,131.89,0.5082163]
[1726684614589,47.8578,132.08,131.89,0.5082163]
[1726684614590,20.25098,131.95,131.89,0.5082163]
[1726684614790,0.12549,131.94,131.89,0.5082163]
[1726684614986,7.70699,131.9,131.89,0.5082163]
[1726684615182,27.70699,131.9,131.89,0.5082163]
[1726684615376,39.33247,131.89,131.81,0.5082163]
[1726684616080,20.12549,131.82,131.81,0.5082163]
[1726684616395,0.12549,131.86,131.81,0.5082163]
[1726684616702,0.12549,131.82,131.81,0.5082163]
[1726684617000,31.362484,131.83,131.73,1.83053663]
[1726684617001,23.776884,131.83,131.73,59.42153663]
[1726684617297,0.37647,131.82,131.73,0.5082163]
[1726684617496,23.776884,131.83,131.75,18.974]
[1726684617697,23.776884,131.83,131.74,50.0]
[1726684617872,10.0,131.93,131.73,0.5082163]
[1726684618076,7.5862,131.82,131.73,0.5082163]
[1726684618305,7.71239,131.81,131.73,0.5082163]
[1726684618503,0.12549,131.83,131.73,0.5082163]
[1726684618672,0.12549,131.82,131.73,0.5082163]
[1726684619000,0.25098,131.79,131.73,0.5082163]
[1726684619207,23.902374,131.75,131.73,0.5082163]
[1726684619710,23.776884,131.75,131.73,0.5082163]
[1726684620213,0.12549,131.73,131.65,0.5082163]
[1726684620587,0.12549,131.72,131.65,0.5082163]
[1726684620782,0.12549,131.73,131.65,0.5082163]
[1726684620985,0.12549,131.72,131.65,0.5082163]
[1726684621213,0.12549,131.74,131.65,0.5082163]
[1726684621513,30.12549,131.74,131.65,0.5082163]
[1726684621712,30.12549,131.74,131.5,0.5082163]
[1726684621713,10.0,131.73,131.51,50.0]
[1726684621913,10.0,131.69,131.5,0.5082163]
[1726684622207,23.776884,131.65,131.5,0.5082163]
[1726684622407,10.0,131.67,131.5,0.5082163]
[1726684622408,0.25098,131.61,131.5,0.5082163]
[1726684622610,23.902374,131.57,131.5,0.5082163]
[1726684622817,23.902374,131.57,131.42,1.83362196]
[1726684622818,20.25098,131.54,131.42,1.83362196]
[1726684623109,0.12549,131.47,131.42,0.5082163]
[1726684623289,23.902374,131.47,131.42,0.5082163]
[1726684623486,0.12549,131.48,131.42,0.5082163]
[1726684623700,23.776884,131.49,131.42,0.5082163]
[1726684623914,0.37647,131.57,131.42,0.5082163]
[1726684624088,0.25098,131.57,131.42,113.24057594]
[1726684624403,0.12549,131.56,131.42,0.5082163]
[1726684624610,23.776884,131.58,131.44,50.0]
[1726684624913,23.776884,131.58,131.42,50.5082163]
[1726684625113,23.776884,131.58,131.45,7.6073]
[1726684625286,23.776884,131.58,131.42,50.5082163]
[1726684625287,23.776884,131.58,131.42,0.5082163]
[1726684625597,33.776884,131.59,131.42,0.5082163]
[1726684625807,17.45659883,131.62,131.51,7.6038]
[1726684626005,9.50749913,131.62,131.43,50.0]
[1726684626183,9.50749913,131.62,131.49,7.605]
[1726684626386,17.45742711,131.68,131.5,1.52041873]
[1726684626590,17.45742711,131.68,131.52,7.6029]
[1726684626789,17.45742711,131.68,131.51,19.0091]
[1726684627413,0.5082163,131.69,131.54,19.0043]
[1726684627599,0.5082163,131.69,131.59,7.5991]
[1726684627908,0.5082163,131.69,131.61,50.12549]
[1726684628113,0.5082163,131.69,131.66,7.5952]
[1726684628290,0.5082163,131.69,131.67,9.11296384]
[1726684628489,0.5082163,131.69,131.62,62.73235964]
[1726684628490,0.5082163,131.69,131.62,18.994]
[1726684628910,0.5082163,131.69,131.67,7.5947]
[1726684629293,0.5082163,131.69,131.65,26.5841]
[1726684630113,0.5082163,131.69,131.68,70.25098]
[1726684630315,9.53153327,131.83,131.75,7.5898]
[1726684630609,9.53153327,131.83,131.68,83.10882964]
[1726684630610,7.92578036,131.82,131.7,18.9823]
[1726684630990,9.53153327,131.83,131.7,18.9823]
[1726684631510,9.53153327,131.83,131.74,18.9767]
[1726684631688,9.53153327,131.83,131.71,0.12549]
[1726684631689,9.53153327,131.83,131.73,7.5911]
[1726684631892,0.5082163,131.85,131.75,0.25098]
[1726684632088,0.5082163,131.85,131.76,70.37647]
[1726684632291,0.5082163,131.85,131.81,7.5861]
[1726684632609,0.5082163,131.85,131.76,38.9735]
[1726684632791,0.5082163,131.85,131.75,0.12549]
[1726684632990,0.5082163,131.85,131.78,7.5883]
[1726684633207,0.5082163,131.85,131.74,0.12549]